[Event "Titled Tuesday Blitz August 1 Late 2023"]
[White "Mladek, Richard"]
[Black "Kula, Robert"]
[WhiteFideId "386588"]
[BlackFideId "1101218"]
[WhiteElo "2544"]
[BlackElo "2267"]
[Result "1-0"]
[Round "6"]
[TimeControl "180+1"]
[Date "2023.08.01"]
[WhiteClock "0:00:05"]
[BlackClock "0:00:00"]
[Board "75"]

1. Nf3 {[%clk 0:03:00]}  d5 {[%clk 0:02:59]} 2. g3 {[%clk 0:03:00]}  c5 {[%clk 0:02:59]} 3. Bg2 {[%clk 0:03:00]}  Nc6 {[%clk 0:02:59]} 4. d4 {[%clk 0:02:54]}  e6 {[%clk 0:02:57]} 5. O-O {[%clk 0:02:50]}  Nf6 {[%clk 0:02:57]} 6. c4 {[%clk 0:02:51]}  dxc4 {[%clk 0:02:55]} 7. Ne5 {[%clk 0:02:37]}  Nxe5 {[%clk 0:02:44]} 8. dxe5 {[%clk 0:02:37]}  Qxd1 {[%clk 0:02:44]} 9. Rxd1 {[%clk 0:02:29]}  Nd7 {[%clk 0:02:41]} 10. f4 {[%clk 0:02:26]}  Rb8 {[%clk 0:02:38]} 11. Nd2 {[%clk 0:02:16]}  Nb6 {[%clk 0:02:02]} 12. Ne4 {[%clk 0:02:00]}  Nd5 {[%clk 0:01:40]} 13. Nd6+ {[%clk 0:01:36]}  Bxd6 {[%clk 0:01:37]} 14. exd6 {[%clk 0:01:36]}  Nf6 {[%clk 0:01:30]} 15. e4 {[%clk 0:01:32]}  O-O {[%clk 0:01:26]} 16. e5 {[%clk 0:01:25]}  Nd7 {[%clk 0:01:26]} 17. a4 {[%clk 0:01:18]}  b6 {[%clk 0:01:25]} 18. Be3 {[%clk 0:01:11]}  Bb7 {[%clk 0:01:24]} 19. Bxb7 {[%clk 0:01:11]}  Rxb7 {[%clk 0:01:24]} 20. Rdc1 {[%clk 0:01:11]}  f6 {[%clk 0:01:21]} 21. exf6 {[%clk 0:01:08]}  Nxf6 {[%clk 0:01:20]} 22. a5 {[%clk 0:01:04]}  Rd8 {[%clk 0:01:06]} 23. axb6 {[%clk 0:00:56]}  axb6 {[%clk 0:01:06]} 24. Rxc4 {[%clk 0:00:55]}  Rxd6 {[%clk 0:01:05]} 25. b4 {[%clk 0:00:56]}  Nd5 {[%clk 0:00:51]} 26. Bd2 {[%clk 0:00:36]}  Ne7 {[%clk 0:00:30]} 27. Ra2 {[%clk 0:00:28]}  Rbd7 {[%clk 0:00:27]} 28. Be1 {[%clk 0:00:26]}  Rd1 {[%clk 0:00:19]} 29. Kf2 {[%clk 0:00:26]}  cxb4 {[%clk 0:00:17]} 30. Rxb4 {[%clk 0:00:27]}  R7d5 {[%clk 0:00:15]} 31. Rxb6 {[%clk 0:00:24]}  Kf7 {[%clk 0:00:15]} 32. Ra7 {[%clk 0:00:23]}  Rd7 {[%clk 0:00:14]} 33. Rbb7 {[%clk 0:00:23]}  Rxb7 {[%clk 0:00:14]} 34. Rxb7 {[%clk 0:00:24]}  Kf6 {[%clk 0:00:13]} 35. Bc3+ {[%clk 0:00:24]}  e5 {[%clk 0:00:10]} 36. Rb6+ {[%clk 0:00:19]}  Kf7 {[%clk 0:00:09]} 37. Bxe5 {[%clk 0:00:20]}  Rd2+ {[%clk 0:00:07]} 38. Kg1 {[%clk 0:00:18]}  Nd5 {[%clk 0:00:07]} 39. Rb7+ {[%clk 0:00:17]}  Ke6 {[%clk 0:00:08]} 40. Rxg7 {[%clk 0:00:17]}  Kf5 {[%clk 0:00:08]} 41. Ra7 {[%clk 0:00:12]}  Kg4 {[%clk 0:00:07]} 42. Ra3 {[%clk 0:00:10]}  h5 {[%clk 0:00:04]} 43. h3+ {[%clk 0:00:04]}  Kxh3 {[%clk 0:00:00]} 44. f5 {[%clk 0:00:05]} 1-0


[Site "https://www.chess.com"]

[Event "Titled Tuesday Blitz August 1 Late 2023"]
[White "D`Arruda, Ricardo D."]
[Black "Fiorito, Joaquin"]
[WhiteFideId "100692"]
[BlackFideId "180173"]
[WhiteElo "2455"]
[BlackElo "2683"]
[Result "1-0"]
[Round "6"]
[TimeControl "180+1"]
[Date "2023.08.01"]
[WhiteClock "0:00:39"]
[BlackClock "0:00:00"]
[Board "77"]

1. d4 {[%clk 0:02:59]}  Nf6 {[%clk 0:03:00]} 2. Nf3 {[%clk 0:02:54]}  d5 {[%clk 0:02:59]} 3. c4 {[%clk 0:02:54]}  e6 {[%clk 0:03:00]} 4. e3 {[%clk 0:02:53]}  b6 {[%clk 0:02:54]} 5. Nc3 {[%clk 0:02:53]}  Bb7 {[%clk 0:02:54]} 6. Bd3 {[%clk 0:02:53]}  Bb4 {[%clk 0:02:53]} 7. O-O {[%clk 0:02:52]}  O-O {[%clk 0:02:54]} 8. Qc2 {[%clk 0:02:50]}  Nbd7 {[%clk 0:02:49]} 9. a3 {[%clk 0:02:47]}  dxc4 {[%clk 0:02:46]} 10. Bxc4 {[%clk 0:02:43]}  Bd6 {[%clk 0:02:46]} 11. e4 {[%clk 0:02:40]}  e5 {[%clk 0:02:46]} 12. d5 {[%clk 0:02:31]}  a6 {[%clk 0:02:46]} 13. a4 {[%clk 0:02:26]}  Re8 {[%clk 0:02:45]} 14. Bg5 {[%clk 0:02:25]}  Nf8 {[%clk 0:02:45]} 15. Rfe1 {[%clk 0:02:23]}  Ng6 {[%clk 0:02:45]} 16. Rad1 {[%clk 0:02:22]}  h6 {[%clk 0:02:45]} 17. Bc1 {[%clk 0:02:22]}  Qe7 {[%clk 0:02:43]} 18. b3 {[%clk 0:02:20]}  Nh5 {[%clk 0:02:41]} 19. g3 {[%clk 0:02:20]}  Bc8 {[%clk 0:02:39]} 20. Bf1 {[%clk 0:02:18]}  Bg4 {[%clk 0:02:37]} 21. Bg2 {[%clk 0:02:18]}  Qd7 {[%clk 0:02:37]} 22. Rd3 {[%clk 0:02:12]}  Bh3 {[%clk 0:02:30]} 23. Bh1 {[%clk 0:02:12]}  b5 {[%clk 0:02:30]} 24. Nd2 {[%clk 0:01:59]}  Bc5 {[%clk 0:02:23]} 25. Nd1 {[%clk 0:01:52]}  Bb6 {[%clk 0:02:19]} 26. Ne3 {[%clk 0:01:50]}  Rf8 {[%clk 0:02:18]} 27. Ba3 {[%clk 0:01:47]}  Rfe8 {[%clk 0:02:16]} 28. Bc5 {[%clk 0:01:46]}  Bxc5 {[%clk 0:02:07]} 29. Qxc5 {[%clk 0:01:47]}  bxa4 {[%clk 0:02:07]} 30. bxa4 {[%clk 0:01:47]}  Qxa4 {[%clk 0:02:08]} 31. Qxc7 {[%clk 0:01:46]}  Rac8 {[%clk 0:02:02]} 32. Qd6 {[%clk 0:01:46]}  Red8 {[%clk 0:01:57]} 33. Qa3 {[%clk 0:01:46]}  Qd7 {[%clk 0:01:30]} 34. Qxa6 {[%clk 0:01:39]}  Ra8 {[%clk 0:01:30]} 35. Qc4 {[%clk 0:01:39]}  Rdc8 {[%clk 0:01:29]} 36. Qb3 {[%clk 0:01:39]}  Rcb8 {[%clk 0:01:20]} 37. Qc2 {[%clk 0:01:39]}  Rb4 {[%clk 0:01:07]} 38. Rc3 {[%clk 0:01:38]}  Qe7 {[%clk 0:01:03]} 39. Nf5 {[%clk 0:01:34]}  Qf6 {[%clk 0:01:02]} 40. Rc8+ {[%clk 0:01:28]}  Rxc8 {[%clk 0:01:01]} 41. Qxc8+ {[%clk 0:01:29]}  Kh7 {[%clk 0:01:01]} 42. Qc3 {[%clk 0:01:26]}  Rb8 {[%clk 0:00:56]} 43. Qf3 {[%clk 0:01:26]}  Qg5 {[%clk 0:00:52]} 44. Qe3 {[%clk 0:01:25]}  Nhf4 {[%clk 0:00:49]} 45. Nf3 {[%clk 0:01:23]}  Qf6 {[%clk 0:00:40]} 46. gxf4 {[%clk 0:01:12]}  exf4 {[%clk 0:00:40]} 47. Qd4 {[%clk 0:01:12]}  Ne5 {[%clk 0:00:31]} 48. Qxe5 {[%clk 0:01:09]}  Qg6+ {[%clk 0:00:31]} 49. Ng3 {[%clk 0:01:09]}  fxg3 {[%clk 0:00:31]} 50. Qxg3 {[%clk 0:01:09]}  Qb6 {[%clk 0:00:15]} 51. Qxh3 {[%clk 0:01:08]}  Re8 {[%clk 0:00:15]} 52. Qg3 {[%clk 0:01:04]}  f5 {[%clk 0:00:12]} 53. e5 {[%clk 0:01:03]}  g5 {[%clk 0:00:12]} 54. d6 {[%clk 0:00:59]}  f4 {[%clk 0:00:11]} 55. Qg4 {[%clk 0:00:58]}  Qb4 {[%clk 0:00:11]} 56. Qf5+ {[%clk 0:00:57]}  Kg8 {[%clk 0:00:11]} 57. Bg2 {[%clk 0:00:49]}  Qc3 {[%clk 0:00:08]} 58. Qe4 {[%clk 0:00:46]}  g4 {[%clk 0:00:07]} 59. Nh4 {[%clk 0:00:41]}  f3 {[%clk 0:00:08]} 60. Bf1 {[%clk 0:00:40]}  h5 {[%clk 0:00:04]} 61. Qg6+ {[%clk 0:00:40]}  Kf8 {[%clk 0:00:00]} 62. Nf5 {[%clk 0:00:39]} 1-0


[Site "https://www.chess.com"]

[Event "Titled Tuesday Blitz August 1 Late 2023"]
[White "Fishbein, Alexander"]
[Black "CatLivesMatter"]
[WhiteFideId "2000377"]
[WhiteElo "2621"]
[BlackElo "2446"]
[Result "1-0"]
[Round "6"]
[TimeControl "180+1"]
[Date "2023.08.01"]
[WhiteClock "0:00:27"]
[BlackClock "0:00:13"]
[Board "78"]

1. c4 {[%clk 0:03:00]}  Nf6 {[%clk 0:02:58]} 2. d4 {[%clk 0:03:00]}  g6 {[%clk 0:02:58]} 3. Nc3 {[%clk 0:02:59]}  Bg7 {[%clk 0:02:59]} 4. e4 {[%clk 0:02:58]}  d6 {[%clk 0:03:00]} 5. Be2 {[%clk 0:02:58]}  O-O {[%clk 0:03:00]} 6. Nf3 {[%clk 0:02:58]}  Na6 {[%clk 0:02:59]} 7. O-O {[%clk 0:02:55]}  e5 {[%clk 0:02:59]} 8. Re1 {[%clk 0:02:54]}  c6 {[%clk 0:02:57]} 9. Bf1 {[%clk 0:02:50]}  exd4 {[%clk 0:02:57]} 10. Nxd4 {[%clk 0:02:50]}  Ng4 {[%clk 0:02:52]} 11. h3 {[%clk 0:02:46]}  Qf6 {[%clk 0:02:51]} 12. hxg4 {[%clk 0:02:31]}  Qxd4 {[%clk 0:02:50]} 13. Be3 {[%clk 0:02:18]}  Qf6 {[%clk 0:02:27]} 14. g5 {[%clk 0:02:17]}  Qe5 {[%clk 0:02:22]} 15. Qd2 {[%clk 0:02:11]}  Rd8 {[%clk 0:02:14]} 16. Rad1 {[%clk 0:02:09]}  Bg4 {[%clk 0:01:57]} 17. f3 {[%clk 0:02:08]}  Be6 {[%clk 0:01:57]} 18. Bd4 {[%clk 0:01:46]}  Qg3 {[%clk 0:01:24]} 19. Bxg7 {[%clk 0:01:43]}  Kxg7 {[%clk 0:01:25]} 20. Qd4+ {[%clk 0:01:37]}  Qe5 {[%clk 0:01:22]} 21. f4 {[%clk 0:01:26]}  Qxd4+ {[%clk 0:01:18]} 22. Rxd4 {[%clk 0:01:27]}  Nb4 {[%clk 0:01:15]} 23. Red1 {[%clk 0:01:24]}  Nc2 {[%clk 0:01:04]} 24. Rxd6 {[%clk 0:01:24]}  Rxd6 {[%clk 0:01:02]} 25. Rxd6 {[%clk 0:01:24]}  Ne3 {[%clk 0:01:02]} 26. b3 {[%clk 0:01:18]}  Kf8 {[%clk 0:01:00]} 27. Rd3 {[%clk 0:01:16]}  Nc2 {[%clk 0:00:56]} 28. Rd2 {[%clk 0:01:14]}  Nb4 {[%clk 0:00:55]} 29. a3 {[%clk 0:01:11]}  Na6 {[%clk 0:00:56]} 30. b4 {[%clk 0:01:11]}  Ke7 {[%clk 0:00:54]} 31. c5 {[%clk 0:01:11]}  Nc7 {[%clk 0:00:54]} 32. Kf2 {[%clk 0:01:07]}  a6 {[%clk 0:00:51]} 33. Ke3 {[%clk 0:01:04]}  Nb5 {[%clk 0:00:51]} 34. Nb1 {[%clk 0:00:58]}  Nc7 {[%clk 0:00:44]} 35. Be2 {[%clk 0:00:55]}  a5 {[%clk 0:00:44]} 36. g4 {[%clk 0:00:50]}  axb4 {[%clk 0:00:44]} 37. axb4 {[%clk 0:00:49]}  Ba2 {[%clk 0:00:35]} 38. Nc3 {[%clk 0:00:47]}  Ra3 {[%clk 0:00:36]} 39. Rxa2 {[%clk 0:00:41]}  Rxc3+ {[%clk 0:00:34]} 40. Bd3 {[%clk 0:00:41]}  Rb3 {[%clk 0:00:34]} 41. Kd2 {[%clk 0:00:33]}  Rxb4 {[%clk 0:00:34]} 42. Kc3 {[%clk 0:00:33]}  Na6 {[%clk 0:00:16]} 43. Rxa6 {[%clk 0:00:32]}  Rxe4 {[%clk 0:00:17]} 44. Bxe4 {[%clk 0:00:31]}  bxa6 {[%clk 0:00:15]} 45. Bxc6 {[%clk 0:00:31]}  Kd8 {[%clk 0:00:16]} 46. Bd5 {[%clk 0:00:31]}  Ke7 {[%clk 0:00:09]} 47. Kb4 {[%clk 0:00:29]}  a5+ {[%clk 0:00:10]} 48. Kxa5 {[%clk 0:00:29]}  h5 {[%clk 0:00:10]} 49. gxh6 {[%clk 0:00:29]}  f5 {[%clk 0:00:10]} 50. gxf5 {[%clk 0:00:28]}  gxf5 {[%clk 0:00:11]} 51. h7 {[%clk 0:00:28]}  Kf6 {[%clk 0:00:12]} 52. h8=Q+ {[%clk 0:00:28]}  Kg6 {[%clk 0:00:12]} 53. Qg8+ {[%clk 0:00:27]}  Kf6 {[%clk 0:00:13]} 54. Qg5# {[%clk 0:00:27]} 1-0


[Site "https://www.chess.com"]

[Event "Titled Tuesday Blitz August 1 Late 2023"]
[White "vishwa_vijeta"]
[Black "Rama, Tejas"]
[BlackFideId "30907381"]
[WhiteElo "2564"]
[BlackElo "2436"]
[Result "1-0"]
[Round "6"]
[TimeControl "180+1"]
[Date "2023.08.01"]
[WhiteClock "0:01:50"]
[BlackClock "0:00:03"]
[Board "79"]

1. e4 {[%clk 0:03:00]}  c5 {[%clk 0:02:58]} 2. Nf3 {[%clk 0:03:01]}  d6 {[%clk 0:02:55]} 3. d4 {[%clk 0:03:01]}  cxd4 {[%clk 0:02:55]} 4. Nxd4 {[%clk 0:03:02]}  Nf6 {[%clk 0:02:56]} 5. Nc3 {[%clk 0:03:02]}  Nc6 {[%clk 0:02:57]} 6. Bg5 {[%clk 0:02:59]}  e6 {[%clk 0:02:57]} 7. Qd3 {[%clk 0:02:59]}  Be7 {[%clk 0:02:55]} 8. O-O-O {[%clk 0:02:56]}  O-O {[%clk 0:02:54]} 9. Ndb5 {[%clk 0:02:48]}  Ne5 {[%clk 0:01:56]} 10. Qd2 {[%clk 0:02:42]}  d5 {[%clk 0:01:29]} 11. exd5 {[%clk 0:02:35]}  Nxd5 {[%clk 0:01:29]} 12. Bxe7 {[%clk 0:02:32]}  Qxe7 {[%clk 0:01:30]} 13. Nxd5 {[%clk 0:02:31]}  exd5 {[%clk 0:01:31]} 14. Re1 {[%clk 0:02:22]}  a6 {[%clk 0:01:00]} 15. Nc3 {[%clk 0:02:13]}  Qd6 {[%clk 0:00:47]} 16. Qxd5 {[%clk 0:02:08]}  Qh6+ {[%clk 0:00:45]} 17. Kb1 {[%clk 0:02:06]}  Ng4 {[%clk 0:00:39]} 18. Bc4 {[%clk 0:02:00]}  Be6 {[%clk 0:00:33]} 19. Rxe6 {[%clk 0:02:00]}  fxe6 {[%clk 0:00:27]} 20. Qxe6+ {[%clk 0:02:00]}  Kh8 {[%clk 0:00:22]} 21. Qxg4 {[%clk 0:01:59]}  Rxf2 {[%clk 0:00:20]} 22. a3 {[%clk 0:01:59]}  Rd8 {[%clk 0:00:14]} 23. Rd1 {[%clk 0:01:57]}  Rxd1+ {[%clk 0:00:13]} 24. Qxd1 {[%clk 0:01:57]}  Qh4 {[%clk 0:00:08]} 25. g3 {[%clk 0:01:54]}  Qe7 {[%clk 0:00:05]} 26. Qd5 {[%clk 0:01:54]}  Rf8 {[%clk 0:00:04]} 27. Ne4 {[%clk 0:01:52]}  b5 {[%clk 0:00:04]} 28. Bb3 {[%clk 0:01:52]}  h6 {[%clk 0:00:05]} 29. Nd6 {[%clk 0:01:52]}  Rf1+ {[%clk 0:00:04]} 30. Ka2 {[%clk 0:01:51]}  Kh7 {[%clk 0:00:03]} 31. Qd3+ {[%clk 0:01:50]} 1-0


[Site "https://www.chess.com"]

[Event "Titled Tuesday Blitz August 1 Late 2023"]
[White "ATM622"]
[Black "i_like_explosions"]
[WhiteElo "2513"]
[BlackElo "2419"]
[Result "0-1"]
[Round "6"]
[TimeControl "180+1"]
[Date "2023.08.01"]
[WhiteClock "0:00:22"]
[BlackClock "0:00:20"]
[Board "84"]

1. d4 {[%clk 0:02:58]}  Nf6 {[%clk 0:02:59]} 2. c4 {[%clk 0:02:57]}  g6 {[%clk 0:02:59]} 3. g3 {[%clk 0:02:56]}  Bg7 {[%clk 0:02:59]} 4. Bg2 {[%clk 0:02:55]}  d6 {[%clk 0:03:00]} 5. Nf3 {[%clk 0:02:54]}  O-O {[%clk 0:03:00]} 6. O-O {[%clk 0:02:55]}  c5 {[%clk 0:03:00]} 7. Nc3 {[%clk 0:02:53]}  Nc6 {[%clk 0:03:00]} 8. d5 {[%clk 0:02:49]}  Na5 {[%clk 0:03:01]} 9. Nd2 {[%clk 0:02:49]}  a6 {[%clk 0:03:01]} 10. e4 {[%clk 0:02:47]}  Rb8 {[%clk 0:03:01]} 11. a4 {[%clk 0:02:46]}  Ne8 {[%clk 0:03:00]} 12. f4 {[%clk 0:02:46]}  e6 {[%clk 0:02:56]} 13. Re1 {[%clk 0:02:44]}  exd5 {[%clk 0:02:56]} 14. Nxd5 {[%clk 0:02:32]}  Nf6 {[%clk 0:02:51]} 15. e5 {[%clk 0:02:31]}  Nxd5 {[%clk 0:02:50]} 16. cxd5 {[%clk 0:02:28]}  Bf5 {[%clk 0:02:46]} 17. Be4 {[%clk 0:02:25]}  dxe5 {[%clk 0:02:40]} 18. Bxf5 {[%clk 0:02:25]}  gxf5 {[%clk 0:02:41]} 19. fxe5 {[%clk 0:02:25]}  Qxd5 {[%clk 0:02:41]} 20. Qh5 {[%clk 0:02:20]}  Bxe5 {[%clk 0:02:30]} 21. Nf3 {[%clk 0:02:17]}  Bg7 {[%clk 0:02:29]} 22. Bh6 {[%clk 0:02:14]}  Bxh6 {[%clk 0:02:22]} 23. Re5 {[%clk 0:02:07]}  Qd6 {[%clk 0:02:16]} 24. Rae1 {[%clk 0:01:53]}  Qg6 {[%clk 0:02:13]} 25. Qh3 {[%clk 0:01:51]}  Nc6 {[%clk 0:02:09]} 26. Rxf5 {[%clk 0:01:49]}  Rfe8 {[%clk 0:02:06]} 27. Rf1 {[%clk 0:01:45]}  Nd4 {[%clk 0:01:47]} 28. Nh4 {[%clk 0:01:35]}  Be3+ {[%clk 0:00:54]} 29. Kh1 {[%clk 0:01:29]}  Qc6+ {[%clk 0:00:53]} 30. Ng2 {[%clk 0:01:18]}  Nxf5 {[%clk 0:00:48]} 31. Qxf5 {[%clk 0:01:17]}  Qe6 {[%clk 0:00:40]} 32. Qh5 {[%clk 0:01:13]}  Qg6 {[%clk 0:00:37]} 33. Qd5 {[%clk 0:01:11]}  Rbd8 {[%clk 0:00:30]} 34. Qxb7 {[%clk 0:01:10]}  Bd4 {[%clk 0:00:27]} 35. a5 {[%clk 0:01:02]}  Re2 {[%clk 0:00:25]} 36. Qc7 {[%clk 0:00:56]}  Rde8 {[%clk 0:00:23]} 37. Qd7 {[%clk 0:00:55]}  Qe6 {[%clk 0:00:17]} 38. Qb7 {[%clk 0:00:51]}  Qe4 {[%clk 0:00:17]} 39. Qxf7+ {[%clk 0:00:51]}  Kh8 {[%clk 0:00:17]} 40. Qf3 {[%clk 0:00:37]}  Qxf3 {[%clk 0:00:16]} 41. Rxf3 {[%clk 0:00:38]}  Rf2 {[%clk 0:00:14]} 42. Rxf2 {[%clk 0:00:36]}  Bxf2 {[%clk 0:00:15]} 43. Nf4 {[%clk 0:00:35]}  Bd4 {[%clk 0:00:16]} 44. b3 {[%clk 0:00:34]}  Rb8 {[%clk 0:00:16]} 45. Kg2 {[%clk 0:00:32]}  Rxb3 {[%clk 0:00:17]} 46. Kh3 {[%clk 0:00:32]}  Ra3 {[%clk 0:00:17]} 47. Kg4 {[%clk 0:00:31]}  Rxa5 {[%clk 0:00:18]} 48. Kf5 {[%clk 0:00:32]}  Rb5 {[%clk 0:00:18]} 49. Ke6 {[%clk 0:00:32]}  Kg7 {[%clk 0:00:18]} 50. g4 {[%clk 0:00:31]}  a5 {[%clk 0:00:19]} 51. g5 {[%clk 0:00:31]}  Rb6+ {[%clk 0:00:19]} 52. Kd7 {[%clk 0:00:29]}  a4 {[%clk 0:00:20]} 53. h4 {[%clk 0:00:29]}  a3 {[%clk 0:00:20]} 54. h5 {[%clk 0:00:30]}  a2 {[%clk 0:00:18]} 55. h6+ {[%clk 0:00:30]}  Rxh6 {[%clk 0:00:19]} 56. gxh6+ {[%clk 0:00:30]}  Kxh6 {[%clk 0:00:19]} 57. Ke8 {[%clk 0:00:29]}  a1=Q {[%clk 0:00:20]} 58. Kf7 {[%clk 0:00:29]}  Qa7+ {[%clk 0:00:20]} 59. Ke6 {[%clk 0:00:28]}  Qb6+ {[%clk 0:00:20]} 60. Kd5 {[%clk 0:00:27]}  Qb7+ {[%clk 0:00:20]} 61. Ke6 {[%clk 0:00:22]}  Qe4+ {[%clk 0:00:20]} 0-1


[Site "https://www.chess.com"]

[Event "Titled Tuesday Blitz August 1 Late 2023"]
[White "AndresDelgado77"]
[Black "Gasparyan, David"]
[BlackFideId "13311980"]
[WhiteElo "2381"]
[BlackElo "2509"]
[Result "0-1"]
[Round "6"]
[TimeControl "180+1"]
[Date "2023.08.01"]
[WhiteClock "0:00:00"]
[BlackClock "0:00:24"]
[Board "85"]

1. e4 {[%clk 0:02:59]}  c5 {[%clk 0:02:57]} 2. Nf3 {[%clk 0:02:58]}  d6 {[%clk 0:02:55]} 3. d4 {[%clk 0:02:58]}  cxd4 {[%clk 0:02:55]} 4. Qxd4 {[%clk 0:02:59]}  Nc6 {[%clk 0:02:54]} 5. Bb5 {[%clk 0:02:59]}  Bd7 {[%clk 0:02:54]} 6. Qd3 {[%clk 0:02:58]}  Nf6 {[%clk 0:02:50]} 7. Bg5 {[%clk 0:02:53]}  Rc8 {[%clk 0:02:49]} 8. Nc3 {[%clk 0:02:52]}  e6 {[%clk 0:02:36]} 9. Bf4 {[%clk 0:02:45]}  Nb4 {[%clk 0:02:28]} 10. Bxd7+ {[%clk 0:02:41]}  Qxd7 {[%clk 0:02:29]} 11. Qd2 {[%clk 0:02:42]}  Be7 {[%clk 0:02:11]} 12. a3 {[%clk 0:02:37]}  Nxe4 {[%clk 0:02:04]} 13. Nxe4 {[%clk 0:02:31]}  Nxc2+ {[%clk 0:02:04]} 14. Ke2 {[%clk 0:02:24]}  Nxa1 {[%clk 0:02:04]} 15. Rxa1 {[%clk 0:02:22]}  Qa4 {[%clk 0:01:39]} 16. Nc3 {[%clk 0:02:07]}  Qc4+ {[%clk 0:01:38]} 17. Ke1 {[%clk 0:02:03]}  O-O {[%clk 0:01:35]} 18. Be3 {[%clk 0:01:51]}  Bf6 {[%clk 0:01:28]} 19. Nd4 {[%clk 0:01:40]}  a6 {[%clk 0:01:20]} 20. f4 {[%clk 0:01:28]}  e5 {[%clk 0:00:50]} 21. Nf5 {[%clk 0:01:19]}  exf4 {[%clk 0:00:44]} 22. Bd4 {[%clk 0:01:05]}  Qe6+ {[%clk 0:00:42]} 23. Kf2 {[%clk 0:00:32]}  Qxf5 {[%clk 0:00:41]} 24. Bxf6 {[%clk 0:00:30]}  Qxf6 {[%clk 0:00:41]} 25. Nd5 {[%clk 0:00:26]}  Qg5 {[%clk 0:00:34]} 26. Kg1 {[%clk 0:00:16]}  Rfe8 {[%clk 0:00:34]} 27. g3 {[%clk 0:00:12]}  h6 {[%clk 0:00:28]} 28. Nxf4 {[%clk 0:00:11]}  Qc5+ {[%clk 0:00:28]} 29. Kg2 {[%clk 0:00:08]}  Qc2 {[%clk 0:00:27]} 30. Rd1 {[%clk 0:00:00]}  g5 {[%clk 0:00:24]} 0-1


[Site "https://www.chess.com"]

[Event "Titled Tuesday Blitz August 1 Late 2023"]
[White "Przybylski, Wojciech"]
[Black "Sanhueza, Cristian"]
[WhiteFideId "1117599"]
[BlackFideId "116815"]
[WhiteElo "2628"]
[BlackElo "2485"]
[Result "1-0"]
[Round "6"]
[TimeControl "180+1"]
[Date "2023.08.01"]
[WhiteClock "0:01:44"]
[BlackClock "0:00:01"]
[Board "89"]

1. e4 {[%clk 0:02:59]}  c5 {[%clk 0:02:59]} 2. Nf3 {[%clk 0:02:58]}  d6 {[%clk 0:02:59]} 3. d4 {[%clk 0:02:59]}  cxd4 {[%clk 0:03:00]} 4. Nxd4 {[%clk 0:02:59]}  Nf6 {[%clk 0:03:00]} 5. Nc3 {[%clk 0:03:00]}  a6 {[%clk 0:03:00]} 6. Bg5 {[%clk 0:02:59]}  e6 {[%clk 0:03:00]} 7. f4 {[%clk 0:02:59]}  h6 {[%clk 0:03:00]} 8. Bh4 {[%clk 0:02:58]}  Nbd7 {[%clk 0:02:59]} 9. Qe2 {[%clk 0:02:57]}  e5 {[%clk 0:02:54]} 10. Nf5 {[%clk 0:02:51]}  exf4 {[%clk 0:02:50]} 11. O-O-O {[%clk 0:02:51]}  g5 {[%clk 0:02:45]} 12. Bf2 {[%clk 0:02:50]}  Ne5 {[%clk 0:02:40]} 13. h4 {[%clk 0:02:49]}  Bxf5 {[%clk 0:02:27]} 14. exf5 {[%clk 0:02:47]}  Nd7 {[%clk 0:01:59]} 15. hxg5 {[%clk 0:02:35]}  Qxg5 {[%clk 0:02:00]} 16. Kb1 {[%clk 0:02:30]}  Qxf5 {[%clk 0:01:57]} 17. Nd5 {[%clk 0:02:19]}  O-O-O {[%clk 0:01:44]} 18. Qd2 {[%clk 0:02:18]}  Kb8 {[%clk 0:01:35]} 19. Qd4 {[%clk 0:02:09]}  Nc5 {[%clk 0:00:34]} 20. b4 {[%clk 0:02:04]}  Ncd7 {[%clk 0:00:16]} 21. Qa7+ {[%clk 0:01:43]}  Kc8 {[%clk 0:00:01]} 22. Bxa6 {[%clk 0:01:44]} 1-0


[Site "https://www.chess.com"]